bitfinex-derivatives/quotes_SOLF0:USTF0_20240830
["timestamp","ask_amount","ask_price","bid_price","bid_amount"]
[1724995821324,3.6238,137.97,137.95,0.05324596]
[1724995821926,0.05209465,137.98,137.95,0.05324596]
[1724995822627,3.624,137.96,137.95,0.05324596]
[1724995824230,0.05209465,137.98,137.95,0.05324596]
[1724995825329,3.6238,137.97,137.95,0.05324596]
[1724995826133,3.67569465,137.98,137.95,0.05324596]
[1724995826334,0.05209465,137.98,137.95,0.05324596]
[1724995827341,3.6238,137.97,137.95,0.05324596]
[1724995827746,0.05209465,137.98,137.95,0.05324596]
[1724995828241,27.83,137.97,137.89,2.6275]
[1724995828428,27.83,137.97,137.79,31.48866917]
[1724995828429,27.83,137.95,137.85,27.83]
[1724995828626,32.97,137.95,137.85,32.97]
[1724995829231,3.67583951,137.91,137.89,0.05279454]
[1724995830944,0.05033951,137.91,137.89,0.05279454]
[1724995831641,1.4167,138.0,137.9,27.83]
[1724995831832,1.4167,138.0,137.91,27.83]
[1724995832743,0.04617797,137.97,137.94,0.05191018]
[1724995832938,3.6242,137.96,137.94,0.05191018]
[1724995833133,0.04617797,137.97,137.94,0.05191018]
[1724995833538,3.6243,137.95,137.94,0.05191018]
[1724995834740,3.6254,137.91,137.88,5.14]
[1724995835041,3.6254,137.91,137.87,3.6263]
[1724995835838,0.05393753,137.9,137.88,0.04909412]
[1724995837143,0.05393753,137.9,137.88,3.67509412]
[1724995839552,0.05393753,137.9,137.89,3.6258]
[1724995841842,0.05393753,137.9,137.88,3.67519412]
[1724995842043,0.05393753,137.9,137.88,8.81519412]
[1724995842444,0.05393753,137.9,137.88,3.67519412]
[1724995842645,0.05393753,137.9,137.88,8.81519412]
[1724995844755,0.05393753,137.9,137.88,3.67519412]
[1724995846052,0.05393753,137.9,137.88,0.04909412]
[1724995846443,3.6258,137.89,137.88,0.04909412]
[1724995846749,0.05393753,137.9,137.88,0.04909412]
[1724995847150,3.67973753,137.9,137.88,0.04909412]
[1724995855657,3.6258,137.89,137.88,0.04909412]
[1724995860063,0.05393753,137.9,137.88,0.04909412]
[1724995862161,3.6258,137.89,137.88,0.04909412]
[1724995863266,3.67963753,137.9,137.88,0.04909412]
[1724995863957,0.05393753,137.9,137.88,0.04909412]
[1724995864762,0.03393753,137.9,137.88,0.04909412]
[1724995866368,29.1855,137.97,137.9,3.6254]
[1724995866772,27.83,137.97,137.9,3.6254]
[1724995866962,3.6245,137.95,137.91,3.6252]
[1724995867167,3.6245,137.95,137.89,27.83]
[1724995867369,3.6245,137.95,137.91,0.04882959]
[1724995867370,0.04676553,137.93,137.91,0.04882959]
[1724995867564,0.04676553,137.93,137.92,3.6251]
[1724995867763,27.83,138.01,137.91,32.97]
[1724995867975,27.83,138.01,137.92,5.14]
[1724995868266,27.83,137.99,137.92,5.14]
[1724995868467,32.97,137.99,137.92,5.14]
[1724995868670,3.6244,137.95,137.91,3.6253]
[1724995868866,3.6244,137.95,137.94,0.04664985]
[1724995873365,3.6253,137.92,137.89,5.14]
[1724995873676,27.83,137.97,137.89,5.14]
[1724995874379,0.05076875,137.94,137.92,0.05036228]
[1724995874678,3.625,137.93,137.92,0.05036228]
[1724995875077,0.05076875,137.94,137.92,0.05036228]
[1724995875475,3.67546875,137.94,137.92,0.05036228]
[1724995875675,0.05076875,137.94,137.92,0.05036228]
[1724995879378,0.03076875,137.94,137.92,0.05036228]
[1724995879680,3.6244,137.95,137.92,0.05036228]
[1724995879681,3.61516875,137.95,137.92,0.05036228]
[1724995880178,2.687,137.98,137.92,0.05036228]
[1724995880377,27.83,137.97,137.92,0.05036228]
[1724995880579,0.02188895,137.96,137.92,0.05036228]
[1724995880776,27.83,137.95,137.92,0.05036228]
[1724995880984,3.6248,137.93,137.92,0.05036228]
[1724995881284,3.6248,137.93,137.83,4.1363]
[1724995881285,27.83,137.93,137.83,4.1363]
[1724995881583,3.6259,137.89,137.85,3.6269]
[1724995882178,0.04648278,137.88,137.86,0.04759827]
[1724995884478,0.04648278,137.88,137.86,7.30924222]
[1724995884783,0.04648278,137.88,137.86,3.68274222]
[1724995884977,0.04648278,137.88,137.86,0.04759827]
[1724995885385,0.04648278,137.88,137.87,3.6264]
[1724995886279,29.2015,137.97,137.87,27.83]
[1724995886475,34.3215,137.97,137.87,32.95]
[1724995886676,29.2015,137.97,137.87,27.83]
[1724995886881,32.75904586,137.97,137.88,3.6259]
[1724995887084,37.87904586,137.97,137.88,3.6259]
[1724995887385,0.02576845,137.94,137.91,0.04717121]
[1724995887794,3.625,137.93,137.91,0.04717121]
[1724995888682,0.02576845,137.94,137.91,0.04717121]
[1724995889275,3.65046845,137.94,137.91,0.04717121]
[1724995889481,3.65046845,137.94,137.91,3.67247121]
[1724995889689,3.65046845,137.94,137.92,32.95]
[1724995889690,0.02576845,137.94,137.92,32.95]
[1724995889896,3.8964,138.03,137.93,32.95]
[1724995890087,31.7264,138.03,137.94,27.83]
[1724995890282,3.6231,138.0,137.94,27.83]
[1724995890586,31.7264,138.03,137.95,5.12]
[1724995890780,3.6227,138.02,137.95,5.12]
[1724995890991,3.6227,138.02,137.98,0.05255253]
[1724995891184,3.8964,138.03,137.98,0.05255253]
[1724995891488,3.6225,138.02,137.98,0.05255253]
[1724995892187,3.6222,138.03,137.98,3.67595253]
[1724995892584,3.6222,138.03,137.98,8.79595253]
[1724995892984,3.6222,138.03,137.98,3.67595253]
[1724995893385,3.6222,138.03,137.98,8.79595253]
[1724995893590,3.622,138.04,137.98,27.88255253]
[1724995893793,4.0821,138.06,137.98,33.00255253]
[1724995893987,4.0821,138.06,137.98,27.88255253]
[1724995894187,3.6224,138.03,137.99,5.12]
[1724995894385,3.6224,138.03,138.0,0.04848957]
[1724995894586,3.5824,138.03,138.0,0.04848957]
[1724995896988,3.6224,138.02,138.0,0.04848957]
[1724995897293,31.9121,138.06,138.0,0.04848957]
[1724995898287,3.6226,138.02,138.0,0.04848957]
[1724995899087,31.9121,138.06,138.0,0.04848957]
[1724995899287,27.83,138.04,138.0,0.04848957]
[1724995899788,3.6227,138.01,138.0,0.04848957]
[1724995900788,3.6225,138.02,138.0,0.04848957]
[1724995901596,3.6222,138.03,138.0,0.04848957]
[1724995901996,31.9121,138.06,138.0,0.04848957]
[1724995903394,3.6227,138.02,138.0,0.04848957]
[1724995904501,27.83,138.08,138.0,0.04848957]
[1724995904797,27.83,138.08,138.03,0.05011655]
[1724995905598,32.95,138.08,138.03,0.05011655]
[1724995905903,27.83,138.06,138.03,0.05011655]
[1724995906306,3.6222,138.04,138.03,0.05011655]
[1724995921415,227.6042389,138.16,138.03,11.18011655]
[1724995921616,15.1467,138.15,138.08,11.18560663]
[1724995921921,4.0167,138.15,138.08,11.18560663]
[1724995922315,354.94202206,138.17,138.1,11.13]
[1724995922518,14.82202206,138.17,138.12,0.05400226]
[1724995922725,11.13,138.16,138.12,0.05400226]
[1724995924122,31.51202206,138.17,138.12,0.05400226]
[1724995924319,3.6195,138.13,138.12,0.05400226]
[1724995924520,3.5995,138.13,138.12,0.05400226]
[1724995925123,3.6191,138.15,138.12,0.05400226]
[1724995925339,30.4684,138.19,138.12,0.05400226]
[1724995926027,3.6188,138.16,138.12,0.05400226]
[1724995926927,3.6185,138.17,138.12,31.49370226]
[1724995927320,2.6484,138.19,138.12,27.87400226]
[1724995927525,2.6484,138.19,138.12,31.49380226]
[1724995928228,3.6187,138.17,138.12,31.49380226]
[1724995928430,2.6484,138.19,138.12,31.49380226]
[1724995929824,3.6187,138.17,138.12,31.49380226]
[1724995930627,4.97736956,138.2,138.13,3.6195]
[1724995930628,3.6183,138.18,138.13,3.6195]
[1724995930830,4.97736956,138.2,138.14,0.05278807]
[1724995931229,1.3701,138.2,138.14,27.87278807]
[1724995931436,3.6184,138.18,138.14,27.87278807]
[1724995931626,3.66114087,138.21,138.14,27.87278807]
[1724995932223,3.6185,138.17,138.14,27.87278807]
[1724995933829,3.6189,138.16,138.14,0.05278807]
[1724995934923,32.94,138.21,138.14,0.05278807]
[1724995934924,3.6186,138.17,138.14,0.05278807]
[1724995936031,3.6186,138.17,138.15,27.82]
[1724995936430,3.619,138.15,138.14,0.05278807]
[1724995936733,27.82,138.2,138.14,0.05278807]
[1724995937431,3.619,138.16,138.14,0.05278807]
[1724995940336,27.82,138.2,138.14,0.05278807]
[1724995940836,32.92,138.2,138.14,0.05278807]
[1724995941232,5.1,138.2,138.14,27.87278807]
[1724995941432,1.3758,138.22,138.14,27.87278807]
[1724995941636,98.64750283,138.23,138.14,27.87278807]
[1724995941939,93.54750283,138.23,138.17,0.05297776]
[1724995942238,3.6182,138.19,138.17,0.05297776]
[1724995943535,65.72750283,138.23,138.17,0.05297776]
[1724995943734,3.6182,138.18,138.17,0.05297776]
[1724995943928,65.72750283,138.23,138.17,0.05297776]
[1724995944133,62.12029156,138.23,138.17,0.05297776]
[1724995944334,93.50282774,138.23,138.17,0.05297776]
[1724995944840,95.04029156,138.23,138.17,0.05297776]
[1724995945645,3.6181,138.19,138.17,0.05297776]
[1724995945941,223.98,138.29,138.18,11.11]
[1724995946133,11.11,138.28,138.22,11.1638186]
[1724995946640,11.11,138.29,138.23,11.11]
[1724995946938,11.11,138.29,138.25,0.04789216]
[1724995947141,3.616,138.27,138.25,0.04789216]
[1724995947543,18.8172,138.3,138.25,0.04789216]
[1724995947741,3.6157,138.28,138.25,0.04789216]
[1724995948642,3.6159,138.27,138.25,0.04789216]
[1724995948844,7.7072,138.3,138.25,0.04789216]
[1724995949351,3.616,138.27,138.25,0.04789216]
[1724995949850,3.6158,138.28,138.25,0.04789216]
[1724995950143,35.4672,138.3,138.25,0.04789216]
[1724995951646,7.7072,138.3,138.25,0.04789216]
[1724995952047,3.6151,138.3,138.25,3.66419216]
[1724995952243,6.49,138.33,138.25,3.66419216]
[1724995952452,10.02396513,138.33,138.25,3.66419216]
[1724995952750,6.49,138.33,138.25,3.66419216]
[1724995953045,1.39,138.33,138.25,3.66419216]
[1724995953250,1.39,138.33,138.26,3.6161]
[1724995953451,251.74,138.34,138.28,0.04723686]
[1724995953639,232.72826738,138.34,138.28,0.04723686]
[1724995953945,27.76,138.35,138.28,0.04723686]
[1724995954144,3.6146,138.32,138.28,0.04723686]
[1724995954752,3.5946,138.32,138.28,0.04723686]
[1724995955045,5.1,138.36,138.28,0.04723686]
[1724995955247,34.00052453,138.37,138.28,0.04723686]
[1724995955442,34.00052453,138.37,138.31,0.05044711]
[1724995955649,39.10052453,138.37,138.31,0.05044711]
[1724995955847,3.6146,138.32,138.31,0.05044711]
[1724995956952,3.6144,138.33,138.31,0.05044711]
[1724995957545,39.10052453,138.37,138.31,0.05044711]
[1724995957546,3.6146,138.32,138.31,0.05044711]
[1724995960553,7.8109,138.37,138.31,0.05044711]
[1724995961047,3.6143,138.33,138.31,0.05044711]
[1724995961253,11.42819805,138.37,138.31,0.05044711]
[1724995962054,2.7109,138.37,138.31,27.81044711]
[1724995962246,6.2896114,138.37,138.31,27.81044711]
[1724995962643,2.7109,138.37,138.31,27.81044711]
[1724995963450,2.7109,138.37,138.31,0.05044711]
[1724995964458,3.6141,138.34,138.31,0.05044711]
[1724995965549,2.7109,138.37,138.31,0.05044711]
[1724995966055,3.6143,138.34,138.31,0.05044711]
[1724995966650,2.7109,138.37,138.31,3.66524711]
[1724995966851,2.7109,138.37,138.31,0.05044711]
[1724995967248,3.6144,138.33,138.31,0.05044711]
[1724995969054,2.7109,138.37,138.31,0.05044711]
[1724995969260,3.6143,138.34,138.31,0.05044711]
[1724995969957,3.6143,138.34,138.31,11.16044711]
[1724995971259,3.6143,138.33,138.31,11.16044711]
[1724995974457,3.6146,138.32,138.31,0.05044711]
[1724995976063,5.1,138.34,138.21,2.7509]
[1724995976367,16.21,138.34,138.29,11.11]
[1724995976565,3.6146,138.32,138.29,11.11]
[1724995977163,16.21,138.34,138.28,11.11]
[1724995977465,11.11,138.29,138.17,11.11]
[1724995977660,30.24913118,138.33,138.17,11.11]
[1724995977661,3.6174,138.22,138.17,11.11]
[1724995978058,16.21,138.25,138.18,11.11]
[1724995978458,11.1580505,138.23,138.2,0.04761209]
[1724995978770,3.6175,138.21,138.2,0.04761209]
[1724995979071,16.21,138.21,138.14,11.11]
[1724995979258,5.1,138.2,138.14,11.11]
[1724995979561,5.1,138.2,138.08,5.1]
[1724995979562,11.11,138.16,138.08,5.1]
[1724995979768,11.11,138.16,138.09,11.11]
[1724995979964,3.67055474,138.14,138.11,0.04989743]
[1724995980268,3.666012,138.14,138.11,0.0505938]
[1724995980856,0.046712,138.14,138.11,27.8705938]
[1724995982565,3.666012,138.14,138.11,27.8705938]
[1724995982762,0.046712,138.14,138.11,0.0505938]
[1724995983063,27.866712,138.14,138.11,0.0505938]
[1724995983265,3.6198,138.12,138.11,0.0505938]
[1724995983662,7.2276,138.36,138.11,0.0505938]
[1724995983863,7.2276,138.36,138.09,27.82]
[1724995983864,2.7256,138.25,138.16,27.82]
[1724995984064,30.5456,138.25,138.16,27.82]
[1724995984466,30.5456,138.25,138.16,27.76]
[1724995984667,3.6174,138.22,138.16,31.3787]
[1724995984863,0.04580727,138.22,138.19,0.05502695]
[1724995985275,3.66300727,138.22,138.19,0.05502695]
[1724995986274,0.04580727,138.22,138.19,0.05502695]
[1724995987474,0.04580727,138.22,138.2,27.82]
[1724995988372,0.04580727,138.22,138.2,31.4375]
[1724995988679,0.04580727,138.22,138.19,0.05502695]
[1724995988868,3.6177,138.2,138.19,0.05502695]
[1724995989174,0.04580727,138.22,138.19,0.05502695]
[1724995989369,3.66320727,138.22,138.19,0.05502695]
[1724995989669,0.04580727,138.22,138.19,0.05502695]
[1724995991373,0.04580727,138.22,138.19,3.67282695]
[1724995991573,0.04580727,138.22,138.19,0.05502695]
[1724995992883,3.6177,138.2,138.19,0.05502695]
[1724995993573,0.04580727,138.22,138.19,0.05502695]
[1724995993975,0.04580727,138.22,138.19,34.77502695]
[1724995995283,0.04580727,138.22,138.19,38.39292695]
[1724995995881,0.04580727,138.22,138.2,3.6176]
[1724995996877,0.04580727,138.22,138.19,34.77502695]
[1724995998782,0.04580727,138.22,138.2,3.6175]
[1724995998979,0.04580727,138.22,138.2,1.3767]
[1724996000076,0.04580727,138.22,138.21,3.6175]
[1724996000293,0.04580727,138.22,138.2,1.3767]
[1724996001286,0.04580727,138.22,138.19,34.77502695]
[1724996001478,0.04580727,138.22,138.19,0.05502695]
[1724996002180,3.66310727,138.22,138.19,0.05502695]
[1724996002379,0.04580727,138.22,138.19,34.77502695]
[1724996003390,0.04580727,138.22,138.2,3.6177]
[1724996003690,0.04580727,138.22,138.19,0.05502695]
[1724996003880,0.04580727,138.22,138.19,34.77502695]
[1724996004889,0.04580727,138.22,138.19,38.39272695]
[1724996005185,0.04580727,138.22,138.19,34.77502695]
[1724996005685,0.04580727,138.22,138.21,38.3375]
[1724996006284,0.04580727,138.22,138.19,43.53292695]
[1724996006488,0.04580727,138.22,138.19,39.91502695]
[1724996006691,0.04580727,138.22,138.19,34.77502695]
[1724996007187,0.04580727,138.22,138.19,38.39292695]
[1724996007782,0.04580727,138.22,138.2,3.6177]
[1724996008680,0.04580727,138.22,138.19,34.77502695]
[1724996009589,0.04580727,138.22,138.2,3.6175]
[1724996010885,0.04580727,138.22,138.21,3.6175]
[1724996011992,3.6161,138.26,138.22,3.6172]
[1724996012180,5.14,138.29,138.2,5.14]
[1724996012385,36.0654,138.3,138.2,5.14]
[1724996012586,3.6163,138.26,138.21,3.6172]
[1724996013080,0.04916525,138.25,138.22,3.66376302]
[1724996013485,3.66556525,138.25,138.22,3.66376302]
[1724996015592,0.04916525,138.25,138.22,3.66376302]
[1724996017193,3.66556525,138.25,138.22,0.04656302]
[1724996017387,0.04916525,138.25,138.22,0.04656302]
[1724996018291,3.6167,138.24,138.22,0.04656302]
[1724996023194,0.04916525,138.25,138.22,0.04656302]
[1724996024200,3.66576525,138.25,138.22,0.04656302]
[1724996024701,3.66576525,138.25,138.22,3.66366302]
[1724996026709,0.04916525,138.25,138.24,3.6167]
[1724996026892,0.04916525,138.25,138.24,31.3867]
[1724996027201,0.04916525,138.25,138.24,27.77]
[1724996027588,0.04916525,138.25,138.22,0.04656302]
[1724996027589,0.04916525,138.25,138.23,27.77]
[1724996027992,0.04916525,138.25,138.23,31.3868]
[1724996028403,0.04916525,138.25,138.23,27.77]
[1724996030792,0.04916525,138.25,138.24,3.6167]
[1724996037913,0.04916525,138.25,138.23,31.3869]
[1724996038106,0.04916525,138.25,138.22,0.04656302]
[1724996038610,3.6169,138.23,138.22,0.04656302]
[1724996039498,0.04916525,138.25,138.22,0.04656302]
[1724996039698,0.04916525,138.25,138.22,27.81656302]
[1724996040806,0.04916525,138.25,138.23,3.6169]
[1724996041709,0.04916525,138.25,138.22,31.43366302]
[1724996042103,0.04916525,138.25,138.22,27.81656302]
[1724996042301,0.04916525,138.25,138.22,0.04656302]
[1724996042709,3.6169,138.23,138.22,0.04656302]
[1724996042900,3.5828993,138.27,138.14,3.9973]
[1724996042901,27.77,138.24,138.14,3.9973]
[1724996043102,3.6183,138.18,138.14,2.7204]
[1724996043712,3.6183,138.18,138.14,1.3385]
[1724996044009,0.05390087,138.17,138.15,0.04601067]
[1724996044912,0.05390087,138.17,138.16,27.77]
[1724996045300,0.05390087,138.17,138.16,31.3888]
[1724996048111,0.05390087,138.17,138.16,3.6188]
[1724996048321,0.05390087,138.17,138.15,5.14601067]
[1724996048515,0.05390087,138.17,138.15,0.04601067]
[1724996049822,0.05390087,138.17,138.15,3.66501067]
[1724996050016,0.05390087,138.17,138.15,0.04601067]
[1724996050515,0.05390087,138.17,138.16,3.6188]
[1724996052321,0.05390087,138.17,138.15,0.04601067]
[1724996053013,27.77,138.16,138.1,1.4017]
[1724996053213,27.77,138.14,138.07,5.1]
[1724996053713,3.62,138.12,138.08,3.6208]
[1724996054113,0.04804504,138.11,138.09,0.05172075]
[1724996055620,3.66814504,138.11,138.09,0.05172075]
[1724996057720,0.04804504,138.11,138.09,0.05172075]
[1724996058923,3.6203,138.1,138.09,0.05172075]
[1724996062326,3.66814504,138.11,138.09,0.05172075]
[1724996062928,3.6203,138.1,138.09,0.05172075]
[1724996065028,3.66824504,138.11,138.09,0.05172075]
[1724996067524,0.04804504,138.11,138.09,0.05172075]
[1724996070536,0.04804504,138.11,138.1,3.6203]
[1724996071431,0.04804504,138.11,138.09,3.67222075]
[1724996074536,0.04804504,138.11,138.09,0.05172075]
[1724996076537,0.04804504,138.11,138.09,3.67212075]
[1724996076729,0.04804504,138.11,138.09,27.82172075]
[1724996076934,0.04804504,138.11,138.1,3.6203]
[1724996077133,0.04804504,138.11,138.1,7.29082356]
[1724996077336,0.04804504,138.11,138.1,3.6203]
[1724996077731,3.6187,138.17,138.14,3.6193]
[1724996077932,29.0864,138.2,138.14,3.6193]
[1724996078133,3.6183,138.18,138.14,3.6193]
[1724996079025,0.05407137,138.17,138.15,0.04639891]
[1724996083542,3.67257137,138.17,138.15,0.04639891]
[1724996087745,0.05407137,138.17,138.15,3.66539891]
[1724996091148,0.05407137,138.17,138.16,3.6188]
[1724996094235,0.05407137,138.17,138.16,14.7388]
[1724996096147,3.6173,138.22,138.18,3.6181]
[1724996096446,3.6167,138.24,138.19,11.12]
[1724996097146,3.66711648,138.23,138.2,3.66534603]
[1724996097950,3.66711648,138.23,138.2,0.04774603]
[1724996098139,0.05021648,138.23,138.2,0.04774603]
[1724996099243,3.66721648,138.23,138.2,0.04774603]
[1724996100150,0.05021648,138.23,138.2,3.66544603]
[1724996100543,0.05021648,138.23,138.2,0.04774603]
[1724996100739,0.05021648,138.23,138.2,27.82774603]
[1724996101343,0.05021648,138.23,138.21,3.6172]
[1724996101545,0.05021648,138.23,138.22,5.1]
[1724996102047,0.05021648,138.23,138.21,5.1]
[1724996102249,0.05021648,138.23,138.2,1.46124603]
[1724996102646,0.05021648,138.23,138.21,5.1]
[1724996103447,0.05021648,138.23,138.21,8.7174]
[1724996103745,0.05021648,138.23,138.2,1.46124603]
[1724996103948,0.05021648,138.23,138.21,5.1]
[1724996104137,0.05021648,138.23,138.2,5.14774603]
[1724996105548,3.66721648,138.23,138.2,0.04774603]
[1724996105736,3.66721648,138.23,138.2,5.14774603]
[1724996105938,3.6172,138.22,138.2,0.04774603]
[1724996106637,0.05021648,138.23,138.2,0.04774603]
[1724996107038,3.6172,138.22,138.2,0.04774603]
[1724996107343,0.05021648,138.23,138.2,0.04774603]
[1724996107549,0.05021648,138.23,138.2,5.14774603]
[1724996107943,0.05021648,138.23,138.2,0.04774603]
[1724996108351,3.66721648,138.23,138.2,3.66544603]
[1724996108849,0.05021648,138.23,138.2,0.04774603]
[1724996109554,3.6172,138.22,138.2,0.04774603]
[1724996111446,3.6175,138.21,138.2,0.04774603]
[1724996114249,3.6173,138.22,138.2,0.04774603]
[1724996117257,3.66731648,138.23,138.2,0.04774603]
[1724996117652,3.66731648,138.23,138.2,3.66534603]
[1724996117954,3.66731648,138.23,138.2,14.77534603]
[1724996120254,0.05021648,138.23,138.21,3.6173]
[1724996120746,0.05021648,138.23,138.22,14.7272]
[1724996122359,0.05021648,138.23,138.22,19.8072]
[1724996126654,3.64362663,138.34,138.22,16.19]
[1724996126854,12.4136,138.32,138.25,11.11]
[1724996127260,3.6156,138.29,138.25,11.11]
[1724996127563,3.6156,138.29,138.26,0.05463361]
[1724996127865,3.6149,138.31,138.26,0.05463361]
[1724996128164,11.11,138.32,138.26,0.05463361]
[1724996128668,3.6155,138.29,138.26,0.05463361]
[1724996129666,3.6153,138.3,138.26,3.67063361]
[1724996129863,3.6153,138.3,138.26,7.31975134]
[1724996130966,3.6153,138.3,138.26,3.67063361]
[1724996131768,3.6153,138.3,138.26,8.75063361]
[1724996132268,3.6147,138.32,138.28,3.6156]
[1724996132470,3.6147,138.32,138.28,14.7256]
[1724996132862,6.3624,138.33,138.29,3.6153]
[1724996133163,6.3624,138.33,138.3,0.04787999]
[1724996133164,2.7479,138.33,138.3,0.04787999]
[1724996133563,3.6146,138.32,138.3,0.04787999]
[1724996134971,6.3623,138.33,138.3,0.04787999]
[1724996135373,2.7479,138.33,138.3,0.04787999]
[1724996135570,3.6148,138.32,138.3,0.04787999]
[1724996141273,2.7479,138.33,138.3,0.04787999]
[1724996141274,6.3623,138.33,138.3,0.04787999]
[1724996142872,3.6144,138.33,138.3,0.04787999]
[1724996143281,3.6144,138.33,138.3,3.66297999]
[1724996143473,3.6141,138.34,138.3,3.66297999]
[1724996144379,3.6141,138.34,138.3,14.77297999]
[1724996144777,7.63174349,138.37,138.3,11.15787999]
[1724996145082,13.8283,138.37,138.31,11.11]
[1724996145282,3.6138,138.35,138.32,3.6144]
[1724996145483,3.6138,138.35,138.32,3.66382409]
[1724996145875,3.6136,138.36,138.32,3.66382409]
[1724996146275,3.6136,138.36,138.32,8.74382409]
[1724996146480,3.6134,138.37,138.33,3.6141]
[1724996146678,14.67249548,138.4,138.33,11.11]
[1724996146880,14.67249548,138.4,138.35,0.0517295]
[1724996147086,3.6132,138.38,138.35,0.0517295]
[1724996147387,14.67249548,138.4,138.35,0.0517295]
[1724996147881,14.7227,138.4,138.35,3.6653295]
[1724996148985,14.7227,138.4,138.36,3.6135]
[1724996150384,11.11,138.45,138.38,11.11]
[1724996150583,2.6904,138.46,138.4,11.16406568]
[1724996150785,2.6904,138.46,138.43,3.6116]
[1724996150975,2.6904,138.46,138.43,3.66025183]
[1724996151179,1.3096,138.46,138.43,0.04865183]
[1724996151576,1.3532,138.49,138.43,0.04865183]
[1724996151786,1.3532,138.49,138.43,3.71181999]
[1724996152085,1.3532,138.49,138.45,3.6111]
[1724996152289,11.11,138.47,138.43,0.04865183]
[1724996153286,11.11,138.44,138.43,0.04865183]
[1724996153586,11.11,138.44,138.38,5.08]
[1724996153784,14.7217,138.43,138.38,3.613]
[1724996154286,14.7217,138.43,138.36,16.19]
[1724996154487,14.7217,138.43,138.38,3.613]
[1724996154681,0.04701801,138.41,138.38,0.05347663]
[1724996155591,3.65931801,138.41,138.38,0.05347663]
[1724996156188,11.15701801,138.41,138.38,0.05347663]
[1724996156386,11.11,138.39,138.38,0.05347663]
[1724996156791,0.04701801,138.41,138.38,0.05347663]
[1724996157187,11.15701801,138.41,138.38,0.05347663]
[1724996157390,3.6127,138.4,138.38,0.05347663]
[1724996157587,0.04701801,138.41,138.38,0.05347663]
[1724996158206,11.15701801,138.41,138.38,0.05347663]
[1724996159210,11.11,138.39,138.38,0.05347663]
[1724996159808,14.7227,138.39,138.38,0.05347663]
[1724996160306,14.7227,138.39,138.32,14.7245]
[1724996160307,3.6134,138.37,138.32,14.7245]
[1724996160606,3.6134,138.37,138.32,19.8045]
[1724996161297,0.05119132,138.36,138.33,0.04778981]
[1724996161609,3.66479132,138.36,138.33,0.04778981]
[1724996161797,0.05119132,138.36,138.33,0.04778981]
[1724996163299,3.6138,138.35,138.33,0.04778981]
[1724996163798,3.66479132,138.36,138.33,0.04778981]
[1724996165299,3.6141,138.34,138.33,0.04778981]
[1724996165501,14.7241,138.34,138.33,0.04778981]
[1724996165703,3.6141,138.34,138.33,0.04778981]
[1724996165905,14.7241,138.34,138.33,0.04778981]
[1724996168418,14.7241,138.34,138.28,14.7255]
[1724996168419,3.6148,138.32,138.27,3.6158]
[1724996168609,14.7248,138.32,138.27,19.8058]
[1724996168811,14.7248,138.32,138.27,14.7258]
[1724996169117,3.6148,138.32,138.27,14.7258]
[1724996169317,3.6148,138.32,138.28,3.6156]
[1724996169517,0.05166266,138.31,138.29,0.05050508]
[1724996170515,0.05166266,138.31,138.29,3.66580508]
[1724996171313,0.05166266,138.31,138.29,14.77580508]
[1724996171718,0.05166266,138.31,138.3,3.6151]
[1724996171914,379.44,138.48,138.29,16.24050508]
[1724996172225,3.6133,138.37,138.32,11.11]
[1724996172614,3.6133,138.37,138.33,3.6143]
[1724996173115,0.04844177,138.36,138.34,0.04567101]
[1724996174318,0.04844177,138.36,138.34,3.65967101]
[1724996174616,0.04844177,138.36,138.34,0.04567101]
[1724996178813,0.04844177,138.36,138.34,3.65967101]
[1724996179318,0.04844177,138.36,138.34,0.04567101]
[1724996179721,0.04844177,138.36,138.35,14.7238]
[1724996182523,0.04844177,138.36,138.35,19.8038]
[1724996184124,1.2929,138.46,138.38,11.11]
[1724996184324,12.4029,138.46,138.38,11.11]
[1724996184516,11.11,138.44,138.38,8.6928]
[1724996184713,11.11,138.44,138.38,5.08]
[1724996184916,11.11,138.44,138.37,16.19]
[1724996185117,0.04981384,138.42,138.39,0.05150874]
[1724996186218,0.04981384,138.42,138.39,3.66400874]
[1724996186814,0.04981384,138.42,138.4,3.6125]
[1724996190623,0.04981384,138.42,138.39,3.66400874]